fUST/lending_fUST_20250214
["ID","MTS","AMOUNT","RATE_DAILY","PERIOD"]
[353071232,1739542238791,-430.50208452,0.00013698,2]
[353071233,1739542238804,-69.49791548,0.00013698,2]
[353071234,1739542238812,-500.0,0.00013698,2]
[353071235,1739542238822,-509.54,0.00013698,2]
[353071236,1739542238831,-500.0,0.00013698,2]
[353071237,1739542238841,-501.50463004,0.00013698,2]
[353071238,1739542238851,-500.0,0.00013698,2]
[353071239,1739542238860,-538.41,0.00013698,2]
[353071240,1739542238868,-500.0,0.00013698,2]
[353071241,1739542238877,-401.35251584,0.00013698,2]
[353071242,1739542238887,-500.0,0.00013698,2]
[353071243,1739542238896,-4106.55,0.00013698,2]
[353071244,1739542238906,-1285.25,0.00013698,2]
[353071245,1739542238915,-173.00971,0.00013699,2]
[353071246,1739542238924,-294.514232,0.00013699,2]
[353071247,1739542238933,-500.0,0.00013699,2]
[353071248,1739542238943,-230.73109712,0.00013699,2]
[353071249,1739542238952,-500.0,0.00013699,2]
[353071250,1739542238961,-500.0,0.00013699,2]
[353071251,1739542238971,-500.0,0.00013699,2]
[353071252,1739542238981,-500.0,0.00013699,2]
[353071253,1739542238990,-500.0,0.00013699,2]
[353071254,1739542238999,-500.0,0.00013699,2]
[353071255,1739542239009,-500.0,0.00013699,2]
[353071256,1739542239019,-500.0,0.00013699,2]
[353071257,1739542239028,-500.0,0.00013699,2]
[353071258,1739542239038,-500.0,0.00013699,2]
[353071259,1739542239048,-500.0,0.00013699,2]
[353071260,1739542239057,-453.43940029,0.00013699,2]
[353071261,1739542239067,-500.0,0.00013699,2]
[353071262,1739542239076,-500.0,0.00013699,2]
[353071263,1739542239086,-500.0,0.00013699,2]
[353071264,1739542239095,-500.0,0.00013699,2]
[353071265,1739542239105,-500.0,0.00013699,2]
[353071266,1739542239114,-500.0,0.00013699,2]
[353071267,1739542239124,-500.0,0.00013699,2]
[353071268,1739542239133,-500.0,0.00013699,2]
[353071269,1739542239143,-500.0,0.00013699,2]
[353071270,1739542239152,-561.96923377,0.00013699,2]
[353071271,1739542239162,-300.0,0.00013699,2]
[353071272,1739542239172,-500.0,0.00013699,2]
[353071273,1739542239180,-500.0,0.00013699,2]
[353071274,1739542239190,-500.0,0.00013699,2]
[353071275,1739542239200,-500.0,0.00013699,2]
[353071276,1739542239209,-500.0,0.00013699,2]
[353071277,1739542239218,-500.0,0.00013699,2]
[353071278,1739542239229,-500.0,0.00013699,2]
[353071279,1739542239239,-500.0,0.00013699,2]
[353071280,1739542239248,-500.0,0.00013699,2]
[353071281,1739542239257,-500.0,0.00013699,2]
[353071282,1739542239267,-500.0,0.00013699,2]
[353071283,1739542239277,-500.0,0.00013699,2]
[353071284,1739542239291,-500.0,0.00013699,2]
[353071285,1739542239301,-500.0,0.00013699,2]
[353071286,1739542239310,-500.0,0.00013699,2]
[353071287,1739542239320,-500.0,0.00013699,2]
[353071288,1739542239330,-500.0,0.00013699,2]
[353071289,1739542239340,-500.0,0.00013699,2]
[353071290,1739542239349,-500.0,0.00013699,2]
[353071291,1739542239360,-500.0,0.00013699,2]
[353071292,1739542239371,-500.0,0.00013699,2]
[353071293,1739542239381,-500.0,0.00013699,2]
[353071294,1739542239390,-500.0,0.00013699,2]
[353071295,1739542239399,-500.0,0.00013699,2]
[353071296,1739542239408,-388.24534866,0.00013699,2]
[353071297,1739542239418,-500.0,0.00013699,2]
[353071298,1739542239427,-500.0,0.00013699,2]
[353071299,1739542239436,-500.0,0.00013699,2]
[353071300,1739542239446,-500.0,0.00013699,2]
[353071301,1739542239455,-500.0,0.00013699,2]
[353071302,1739542239464,-500.0,0.00013699,2]
[353071303,1739542239474,-500.0,0.00013699,2]
[353071304,1739542239483,-500.0,0.00013699,2]
[353071305,1739542239493,-350.0,0.00013699,2]
[353071306,1739542239502,-500.0,0.00013699,2]
[353071307,1739542239512,-500.0,0.00013699,2]
[353071308,1739542239522,-500.0,0.00013699,2]
[353071309,1739542239531,-500.0,0.00013699,2]
[353071310,1739542239541,-500.0,0.00013699,2]
[353071311,1739542239551,-500.0,0.00013699,2]
[353071312,1739542239560,-500.0,0.00013699,2]
[353071313,1739542239569,-500.0,0.00013699,2]
[353071314,1739542239579,-500.0,0.00013699,2]
[353071315,1739542239588,-600.0,0.00013699,2]
[353071316,1739542239598,-500.0,0.00013699,2]
[353071317,1739542239607,-516.8191328,0.00013699,2]
[353071318,1739542239617,-500.0,0.00013699,2]
[353071319,1739542239626,-363.27096689,0.00013699,2]
[353071320,1739542239635,-500.0,0.00013699,2]
[353071321,1739542239645,-500.0,0.00013699,2]
[353071322,1739542239654,-500.0,0.00013699,2]
[353071323,1739542239664,-500.0,0.00013699,2]
[353071324,1739542239674,-500.0,0.00013699,2]
[353071325,1739542239683,-500.0,0.00013699,2]
[353071326,1739542239692,-165.8553,0.0001372,4]
[353071327,1739542239702,-152.0,0.00013758,2]
[353071328,1739542239712,-1979.63,0.00013763,2]
[353071329,1739542239721,-3000.0,0.00013775,2]
[353071330,1739542239732,-1979.63,0.00013778,2]
[353071331,1739542239743,-1979.63,0.00013778,2]
[353071332,1739542239752,-14294.0,0.00013779,2]
[353071333,1739542239762,-1323.76,0.00013779,2]
[353071334,1739542239772,-1979.63,0.00013779,2]
[353071335,1739542239782,-1979.63,0.00013779,2]
[353071336,1739542239792,-1979.63,0.00013779,2]
[353071337,1739542239802,-1979.63,0.00013779,2]
[353071338,1739542239811,-1979.63,0.00013779,2]
[353071339,1739542239822,-1979.63,0.00013779,2]
[353071340,1739542239832,-1979.63,0.00013779,2]
[353071341,1739542239841,-1979.63,0.00013779,2]
[353071342,1739542239851,-1979.82407413,0.00013779,2]
[353071343,1739542239861,-500.0,0.0001378,2]
[353071344,1739542239870,-499.92430052,0.0001378,2]
[353071345,1739542239880,-501.18998335,0.0001378,2]
[353071346,1739542239890,-437.84854412,0.0001378,2]
[353071347,1739542239899,-500.0,0.0001378,2]
[353071348,1739542239909,-500.0,0.0001378,2]
[353071349,1739542239919,-500.0,0.0001378,2]
[353071350,1739542239928,-151.75449317,0.0001378,2]
[353071351,1739542239937,-500.0,0.0001378,2]
[353071352,1739542239946,-500.0,0.0001378,2]
[353071353,1739542239956,-754.4,0.0001378,2]
[353071354,1739542239965,-500.0,0.0001378,2]
[353071356,1739542239974,-1000.0,0.0001378,2]
[353071358,1739542239987,-553.69,0.0001378,2]
[353071359,1739542239996,-500.0,0.0001378,2]
[353071361,1739542240006,-647.9,0.0001378,2]
[353071363,1739542240016,-500.0,0.0001378,2]
[353071364,1739542240026,-500.0,0.0001378,2]
[353071366,1739542240035,-500.0,0.0001378,2]
[353071368,1739542240045,-500.0,0.0001378,2]
[353071369,1739542240054,-710.79,0.0001378,2]
[353071370,1739542240063,-500.0,0.0001378,2]
[353071371,1739542240072,-500.0,0.0001378,2]
[353071372,1739542240081,-500.0,0.0001378,2]
[353071373,1739542240092,-505.45878752,0.0001378,2]
[353071374,1739542240101,-500.0,0.0001378,2]
[353071375,1739542240111,-500.0,0.0001378,2]
[353071376,1739542240121,-978.35,0.0001378,2]
[353071377,1739542240131,-500.0,0.0001378,2]
[353071378,1739542240140,-806.33,0.0001378,2]
[353071379,1739542240150,-500.0,0.0001378,2]
[353071380,1739542240159,-500.0,0.0001378,2]
[353071381,1739542240169,-500.0,0.0001378,2]
[353071382,1739542240178,-500.0,0.0001378,2]
[353071384,1739542240187,-500.0,0.0001378,2]
[353071386,1739542240197,-500.0,0.0001378,2]
[353071388,1739542240206,-529.58,0.0001378,2]
[353071390,1739542240216,-502.90476339,0.0001378,2]
[353071392,1739542240225,-506.5,0.0001378,2]
[353071394,1739542240237,-503.40472036,0.0001378,2]
[353071396,1739542240246,-500.0,0.0001378,2]
[353071398,1739542240255,-500.0,0.0001378,2]
[353071400,1739542240265,-272.65215659,0.0001378,2]
[353071402,1739542240276,-500.0,0.0001378,2]
[353071404,1739542240289,-1765.09,0.0001378,2]
[353071406,1739542240299,-826.23,0.0001378,2]
[353071408,1739542240309,-1425.73,0.0001378,2]
[353071410,1739542240318,-500.0,0.0001378,2]
[353071412,1739542240329,-1802.22,0.0001378,2]
[353071414,1739542240338,-500.0,0.0001378,2]
[353071416,1739542240348,-549.66,0.0001378,2]
[353071418,1739542240357,-500.0,0.0001378,2]
[353071419,1739542240367,-500.0,0.0001378,2]
[353071420,1739542240377,-500.0,0.0001378,2]
[353071431,1739542240477,-500.0,0.0001378,2]
[353071433,1739542240488,-845.93,0.0001378,2]
[353071435,1739542240497,-500.0,0.0001378,2]
[353071438,1739542240507,-560.52,0.0001378,2]
[353071440,1739542240516,-500.0,0.0001378,2]
[353071442,1739542240526,-214.38248335,0.0001378,2]
[353071444,1739542240535,-500.0,0.0001378,2]
[353071446,1739542240548,-500.0,0.0001378,2]
[353071448,1739542240558,-500.0,0.0001378,2]
[353071450,1739542240568,-500.0,0.0001378,2]
[353071452,1739542240577,-500.0,0.0001378,2]
[353071454,1739542240587,-500.0,0.0001378,2]
[353071456,1739542240596,-1655.31,0.0001378,2]
[353071458,1739542240606,-331.27251379,0.0001378,2]
[353071460,1739542240615,-1323.75,0.0001378,2]
[353071462,1739542240624,-500.0,0.0001378,2]
[353071464,1739542240633,-500.0,0.0001378,2]
[353071466,1739542240643,-500.0,0.0001378,2]
[353071468,1739542240652,-500.0,0.0001378,2]
[353071470,1739542240661,-500.0,0.0001378,2]
[353071472,1739542240670,-500.0,0.0001378,2]
[353071474,1739542240679,-501.8015462,0.0001378,2]
[353071476,1739542240689,-500.0,0.0001378,2]
[353071478,1739542240699,-500.0,0.0001378,2]
[353071480,1739542240709,-500.0,0.0001378,2]
[353071482,1739542240718,-4319.47,0.0001378,2]
[353071484,1739542240729,-500.0,0.0001378,2]
[353071486,1739542240739,-633.34,0.0001378,2]
[353071488,1739542240748,-500.0,0.0001378,2]
[353071490,1739542240757,-3690.71,0.0001378,2]
[353071492,1739542240767,-500.0,0.0001378,2]
[353071494,1739542240776,-500.0,0.0001378,2]
[353071496,1739542240786,-500.0,0.0001378,2]
[353071498,1739542240796,-700.11,0.0001378,2]
[353071500,1739542240805,-7996.59,0.0001378,2]
[353071502,1739542240815,-563.01843799,0.0001378,2]
[353071504,1739542240825,-2283.16,0.0001378,2]
[353071506,1739542240835,-500.0,0.0001378,2]
[353071508,1739542240844,-678.75,0.0001378,2]
[353071510,1739542240854,-500.0,0.0001378,2]
[353071512,1739542240862,-500.0,0.0001378,2]
[353071514,1739542240872,-503.0558322,0.0001378,2]
[353071516,1739542240881,-500.0,0.0001378,2]
[353071518,1739542240892,-500.0,0.0001378,2]
[353071520,1739542240901,-500.0,0.0001378,2]
[353071522,1739542240910,-1217.0,0.0001378,2]
[353071524,1739542240919,-810.55,0.0001378,2]
[353071526,1739542240929,-607.84,0.0001378,2]
[353071528,1739542240938,-5243.15,0.0001378,2]
[353071530,1739542240946,-1794.99,0.0001378,2]
[353071532,1739542240955,-500.0,0.0001378,2]
[353071534,1739542240964,-500.0,0.0001378,2]
[353071536,1739542240973,-4174.72,0.0001378,2]
[353071538,1739542240983,-1360.31,0.0001378,2]
[353071540,1739542240992,-500.0,0.0001378,2]
[353071542,1739542241002,-500.0,0.0001378,2]
[353071544,1739542241012,-500.0,0.0001378,2]
[353071547,1739542241021,-500.0,0.0001378,2]
[353071549,1739542241030,-2175.47,0.0001378,2]
[353071551,1739542241039,-500.0,0.0001378,2]
[353071553,1739542241049,-23072.3679047,0.0001378,2]
[353071578,1739542241271,-21912.8720953,0.0001378,2]
[353071580,1739542241285,-1639.22,0.0001378,2]
[353071583,1739542241298,-500.0,0.0001378,2]
[353071585,1739542241312,-500.0,0.0001378,2]
[353071587,1739542241325,-500.0,0.0001378,2]
[353071590,1739542241336,-513.35,0.0001378,2]
[353071592,1739542241347,-500.0,0.0001378,2]
[353071594,1739542241361,-2146.67,0.0001378,2]
[353071597,1739542241374,-500.0,0.0001378,2]
[353071599,1739542241388,-500.0,0.0001378,2]
[353071602,1739542241401,-500.0,0.0001378,2]
[353071604,1739542241415,-18223.66,0.0001378,2]
[353071607,1739542241429,-1301.43,0.0001378,2]
[353071609,1739542241444,-500.0,0.0001378,2]
[353071612,1739542241456,-1302.53,0.0001378,2]
[353071614,1739542241467,-500.0,0.0001378,2]
[353071616,1739542241478,-2348.76,0.0001378,2]
[353071618,1739542241491,-500.0,0.0001378,2]
[353071621,1739542241505,-535.59,0.0001378,2]
[353071623,1739542241519,-350.31572753,0.0001378,2]
[353071626,1739542241530,-500.0,0.0001378,2]
[353071628,1739542241543,-853.32,0.0001378,2]
[353071630,1739542241555,-1457.43,0.0001378,2]
[353071632,1739542241567,-512.5487656,0.0001378,2]
[353071634,1739542241579,-500.0,0.0001378,2]
[353071636,1739542241591,-588.63,0.0001378,2]
[353071638,1739542241602,-500.0,0.0001378,2]
[353071640,1739542241614,-249.58592137,0.0001378,2]
[353071643,1739542241625,-3569.02,0.0001378,2]
[353071645,1739542241636,-500.0,0.0001378,2]
[353071647,1739542241648,-856.51,0.0001378,2]
[353071649,1739542241660,-500.0,0.0001378,2]
[353071652,1739542241672,-3262.69,0.0001378,2]
[353071654,1739542241685,-500.0,0.0001378,2]
[353071656,1739542241696,-500.0,0.0001378,2]
[353071658,1739542241708,-500.0,0.0001378,2]
[353071661,1739542241719,-1824.96,0.0001378,2]
[353071663,1739542241732,-500.0,0.0001378,2]
[353071665,1739542241743,-500.0,0.0001378,2]
[353071667,1739542241754,-854.14,0.0001378,2]
[353071669,1739542241766,-588.63,0.0001378,2]
[353071672,1739542241776,-7740.2,0.0001378,2]
[353071674,1739542241788,-1444.2,0.0001378,2]
[353071676,1739542241800,-1649.8,0.0001378,2]
[353071679,1739542241812,-500.0,0.0001378,2]
[353071681,1739542241823,-509.54,0.0001378,2]
[353071683,1739542241835,-500.0,0.0001378,2]
[353071685,1739542241847,-500.0,0.0001378,2]
[353071687,1739542241859,-538.41,0.0001378,2]
[353071690,1739542241871,-500.0,0.0001378,2]
[353071692,1739542241884,-500.0,0.0001378,2]
[353071694,1739542241896,-4106.55,0.0001378,2]
[353071697,1739542241910,-1285.25,0.0001378,2]
[353071699,1739542241923,-154.666516,0.00013781,2]
[353071701,1739542241935,-431.8462186,0.00013781,2]
[353071703,1739542241947,-306.0,0.00013781,2]
[353071706,1739542241958,-306.0,0.00013781,2]
[353071708,1739542241971,-154.666516,0.00013781,2]
[353071710,1739542241984,-154.666516,0.00013781,2]
[353071713,1739542241995,-151.0,0.000138,2]
[353071715,1739542242008,-151.0,0.000138,2]
[353071717,1739542242019,-151.0,0.000138,2]
[353071719,1739542242030,-151.0,0.000138,2]
[353071721,1739542242041,-151.0,0.000138,2]
[353071723,1739542242051,-151.0,0.000138,2]
[353071725,1739542242060,-598.47143487,0.00013845,2]
[353071727,1739542242070,-159.37133213,0.00013845,2]
[353071729,1739542242080,-159.37133213,0.00013845,2]
[353071731,1739542242090,-159.37133213,0.00013845,2]
[353071733,1739542242100,-159.37133213,0.00013845,2]
[353071735,1739542242109,-159.37133213,0.00013845,2]
[353071737,1739542242119,-159.37133213,0.00013845,2]
[353071739,1739542242129,-159.37133213,0.00013845,2]
[353071741,1739542242139,-159.37133213,0.00013845,2]
[353071743,1739542242148,-159.37,0.00013845,2]
[353071745,1739542242157,-1073.1849173,0.00013858,2]
[353071747,1739542242167,-14294.0,0.00013861,2]
[353071749,1739542242177,-1323.76,0.00013861,2]
[353071751,1739542242187,-500.0,0.00013862,2]
[353071753,1739542242197,-296.10644691,0.00013862,2]
[353071755,1739542242207,-500.0,0.00013862,2]
[353071775,1739542242402,-500.0,0.00013862,2]
[353071778,1739542242416,-607.70954156,0.00013862,2]
[353071780,1739542242425,-500.0,0.00013863,2]
[353071782,1739542242436,-500.0,0.00013863,2]
[353071784,1739542242446,-500.0,0.00013863,2]
[353071786,1739542242455,-502.83772679,0.00013863,2]
[353071788,1739542242464,-500.0,0.00013863,2]
[353071790,1739542242474,-256.93517649,0.00013863,2]
[353071792,1739542242485,-754.4,0.00013863,2]
[353071794,1739542242494,-500.0,0.00013863,2]
[353071796,1739542242504,-1000.0,0.00013863,2]
[353071798,1739542242513,-647.9,0.00013863,2]
[353071800,1739542242523,-406.85361087,0.00013863,2]
[353071802,1739542242533,-174.74641207,0.00013863,2]
[353071804,1739542242542,-710.79,0.00013863,2]
[353071806,1739542242552,-500.0,0.00013863,2]
[353071808,1739542242561,-500.0,0.00013863,2]
[353071810,1739542242571,-500.0,0.00013863,2]
[353071812,1739542242580,-978.35,0.00013863,2]
[353071814,1739542242590,-806.33,0.00013863,2]
[353071816,1739542242599,-500.0,0.00013863,2]
[353071818,1739542242609,-500.0,0.00013863,2]
[353071820,1739542242618,-500.0,0.00013863,2]
[353071822,1739542242628,-500.0,0.00013863,2]
[353071824,1739542242638,-500.0,0.00013863,2]
[353071827,1739542242648,-529.58,0.00013863,2]
[353071830,1739542242657,-500.0,0.00013863,2]
[353071832,1739542242666,-500.0,0.00013863,2]
[353071836,1739542242675,-1765.09,0.00013863,2]
[353071838,1739542242685,-826.23,0.00013863,2]
[353071842,1739542242695,-1425.73,0.00013863,2]
[353071844,1739542242705,-1802.22,0.00013863,2]
[353071848,1739542242715,-500.0,0.00013863,2]
[353071851,1739542242724,-549.66,0.00013863,2]
[353071854,1739542242735,-500.0,0.00013863,2]
[353071857,1739542242745,-500.0,0.00013863,2]
[353071860,1739542242755,-500.0,0.00013863,2]
[353071863,1739542242765,-845.93,0.00013863,2]
[353071867,1739542242774,-560.52,0.00013863,2]
[353071870,1739542242783,-500.0,0.00013863,2]
[353071874,1739542242793,-500.0,0.00013863,2]
[353071877,1739542242802,-500.0,0.00013863,2]
[353071881,1739542242811,-500.0,0.00013863,2]
[353071885,1739542242820,-500.0,0.00013863,2]
[353071888,1739542242830,-359.64086363,0.00013863,2]
[353071893,1739542242839,-1655.31,0.00013863,2]
[353071896,1739542242848,-1323.75,0.00013863,2]
[353071900,1739542242857,-500.0,0.00013863,2]
[353071903,1739542242866,-500.0,0.00013863,2]
[353071908,1739542242875,-500.0,0.00013863,2]
[353071911,1739542242885,-500.0,0.00013863,2]
[353071914,1739542242895,-4319.47,0.00013863,2]
[353071917,1739542242904,-633.34,0.00013863,2]
[353071922,1739542242913,-3690.71,0.00013863,2]
[353071926,1739542242924,-500.0,0.00013863,2]
[353071931,1739542242933,-500.0,0.00013863,2]
[353071936,1739542242945,-625.51123241,0.00013863,2]
[353071939,1739542242954,-700.11,0.00013863,2]
[353071942,1739542242964,-7996.59,0.00013863,2]
[353071945,1739542242973,-2283.16,0.00013863,2]
[353071948,1739542242984,-678.75,0.00013863,2]
[353071951,1739542242994,-500.0,0.00013863,2]
[353071954,1739542243003,-500.0,0.00013863,2]
[353071957,1739542243013,-500.0,0.00013863,2]
[353071960,1739542243022,-500.0,0.00013863,2]
[353071963,1739542243031,-1217.0,0.00013863,2]
[353071966,1739542243041,-810.55,0.00013863,2]
[353071969,1739542243051,-607.84,0.00013863,2]
[353071972,1739542243061,-5243.15,0.00013863,2]
[353071975,1739542243070,-1794.99,0.00013863,2]
[353071978,1739542243080,-500.0,0.00013863,2]
[353071981,1739542243089,-4174.72,0.00013863,2]
[353071984,1739542243099,-1360.31,0.00013863,2]
[353071986,1739542243109,-503.88815816,0.00013863,2]
[353071989,1739542243118,-428.35306669,0.00013863,2]
[353071992,1739542243128,-166.69536,0.00013863,2]
[353071995,1739542243139,-500.0,0.00013863,2]
[353071998,1739542243149,-2175.47,0.00013863,2]
[353072001,1739542243159,-500.0,0.00013863,2]
[353072004,1739542243168,-44985.24,0.00013863,2]
[353072007,1739542243178,-1639.22,0.00013863,2]
[353072010,1739542243187,-500.0,0.00013863,2]
[353072013,1739542243196,-500.0,0.00013863,2]
[353072016,1739542243205,-500.0,0.00013863,2]
[353072019,1739542243214,-513.35,0.00013863,2]
[353072022,1739542243223,-556.94342698,0.00013863,2]
[353072024,1739542243233,-2146.67,0.00013863,2]
[353072027,1739542243242,-500.0,0.00013863,2]
[353072030,1739542243252,-18223.66,0.00013863,2]
[353072033,1739542243262,-1301.43,0.00013863,2]
[353072036,1739542243271,-1302.53,0.00013863,2]
[353072039,1739542243287,-500.0,0.00013863,2]
[353072042,1739542243297,-2348.76,0.00013863,2]
[353072045,1739542243306,-258.14563886,0.00013863,2]
[353072048,1739542243316,-535.59,0.00013863,2]
[353072050,1739542243327,-500.0,0.00013863,2]
[353072053,1739542243337,-853.32,0.00013863,2]
[353072056,1739542243346,-1457.43,0.00013863,2]
[353072059,1739542243357,-500.0,0.00013863,2]
[353072063,1739542243367,-588.63,0.00013863,2]
[353072066,1739542243377,-500.0,0.00013863,2]
[353072069,1739542243387,-3569.02,0.00013863,2]
[353072072,1739542243396,-500.0,0.00013863,2]
[353072075,1739542243405,-856.51,0.00013863,2]
[353072078,1739542243414,-500.0,0.00013863,2]
[353072080,1739542243424,-3262.69,0.00013863,2]
[353072083,1739542243433,-500.0,0.00013863,2]
[353072086,1739542243442,-500.0,0.00013863,2]
[353072089,1739542243451,-500.0,0.00013863,2]
[353072091,1739542243458,-1824.96,0.00013863,2]
[353072094,1739542243467,-500.0,0.00013863,2]
[353072096,1739542243477,-500.0,0.00013863,2]
[353072098,1739542243487,-854.14,0.00013863,2]
[353072100,1739542243496,-588.63,0.00013863,2]
[353072103,1739542243505,-7740.2,0.00013863,2]
[353072106,1739542243515,-1444.2,0.00013863,2]
[353072109,1739542243524,-1649.8,0.00013863,2]
[353072113,1739542243533,-500.0,0.00013863,2]
[353072116,1739542243542,-509.54,0.00013863,2]
[353072117,1739542243551,-500.0,0.00013863,2]
[353072120,1739542243562,-538.41,0.00013863,2]
[353072125,1739542243571,-500.0,0.00013863,2]
[353072127,1739542243580,-4106.55,0.00013863,2]
[353072130,1739542243590,-1285.25,0.00013863,2]
[353072133,1739542243599,-187.505,0.00013875,2]
[353072136,1739542243608,-154.519,0.00013875,2]
[353072138,1739542243618,-150.0,0.00013875,2]
[353072142,1739542243627,-1970.0,0.00013875,2]
[353072144,1739542243637,-538.0,0.00013875,2]
[353072147,1739542243647,-2292.0,0.00013875,2]
[353072149,1739542243657,-396.0,0.00013875,2]
[353072152,1739542243666,-615.267,0.0001389,2]
[353072155,1739542243676,-151.0,0.000139,2]
[353072158,1739542243685,-151.0,0.000139,2]
[353072161,1739542243694,-151.0,0.000139,2]
[353072164,1739542243703,-151.0,0.000139,2]
[353072167,1739542243713,-151.0,0.000139,2]
[353072170,1739542243722,-151.0,0.000139,2]
[353072173,1739542243732,-151.0,0.000139,2]
[353072176,1739542243741,-151.0,0.000139,2]
[353072178,1739542243750,-151.0,0.000139,2]
[353072179,1739542243760,-151.0,0.000139,2]
[353072181,1739542243769,-151.0,0.000139,2]
[353072183,1739542243778,-5968.62179446,0.00013926,2]
[353072185,1739542243787,-14294.0,0.00013944,2]
[353072187,1739542243796,-1323.76,0.00013944,2]
[353072189,1739542243806,-160.0,0.00013944,2]
[353072191,1739542243815,-24526.03860847,0.00013945,5]
[353072194,1739542243824,-500.0,0.00013945,2]
[353072196,1739542243834,-500.0,0.00013945,2]
[353072197,1739542243843,-500.0,0.00013945,2]
[353072199,1739542243852,-500.0,0.00013945,2]
[353072201,1739542243861,-754.4,0.00013945,2]
[353072204,1739542243871,-500.0,0.00013945,2]
[353072207,1739542243880,-251.429093,0.00013945,2]
[353072211,1739542243889,-159.047958,0.00013945,2]
[353072213,1739542243899,-159.047958,0.00013945,2]
[353072218,1739542243908,-647.9,0.00013945,2]
[353072220,1739542243918,-151.0,0.00013945,2]
[353072222,1739542243927,-172.117096,0.00013945,2]
[353072225,1739542243936,-710.79,0.00013945,2]
[353072228,1739542243946,-151.0,0.00013945,2]
[353072231,1739542243955,-500.0,0.00013945,2]
[353072234,1739542243964,-500.0,0.00013945,2]
[353072237,1739542243974,-203.514847,0.00013945,2]
[353072242,1739542243986,-203.514847,0.00013945,2]
[353072245,1739542243995,-280.70698117,0.00013945,2]
[353072247,1739542244004,-978.35,0.00013945,2]
[353072250,1739542244014,-806.33,0.00013945,2]
[353072253,1739542244023,-500.0,0.00013945,2]
[353072256,1739542244032,-151.0,0.00013945,2]
[353072259,1739542244041,-151.0,0.00013945,2]
[353072262,1739542244050,-151.0,0.00013945,2]
[353072265,1739542244059,-500.0,0.00013945,2]
[353072267,1739542244068,-500.0,0.00013945,2]
[353072271,1739542244078,-500.0,0.00013945,2]
[353072273,1739542244088,-529.58,0.00013945,2]
[353072276,1739542244098,-151.0,0.00013945,2]
[353072278,1739542244107,-500.0,0.00013945,2]
[353072281,1739542244117,-500.0,0.00013945,2]
[353072284,1739542244127,-1765.09,0.00013945,2]
[353072286,1739542244136,-826.23,0.00013945,2]
[353072289,1739542244146,-1425.73,0.00013945,2]
[353072290,1739542244156,-1802.22,0.00013945,2]
[353072292,1739542244166,-500.0,0.00013945,2]
[353072295,1739542244176,-549.66,0.00013945,2]
[353072296,1739542244185,-500.0,0.00013945,2]
[353072298,1739542244195,-500.0,0.00013945,2]
[353072300,1739542244205,-151.0,0.00013945,2]
[353072302,1739542244215,-500.0,0.00013945,2]
[353072304,1739542244224,-845.93,0.00013945,2]
[353072306,1739542244234,-560.52,0.00013945,2]
[353072308,1739542244243,-500.0,0.00013945,2]